{"text_format":"1","workbook":"xlsx","n_sheets":7,"sheets":["APPEL","DEBUT","EQUIPES","COMPTEUR","COMPTEUR (2)","COMPTEUR (3)","COMPTEUR (4)"],"not_rendered":{"charts":0,"images":0,"macros":0,"external_links":0,"defined_names":13,"comments":0,"pivot_tables":0},"unopened":[],"bounds":{"document_bytes":16777216,"sheet_cells":100000,"rows_first":2000,"rows_last":500,"rows_between":2000,"halvings":0,"cell_chars":16384,"cell_head_chars":4096},"cells_cut":0,"cells_raw":0,"read":"whole","date_system":"1900"}

{"sheet":"APPEL","index":0,"n_rows":38,"n_cols":28,"rows_kept":38,"cut":false,"hidden":false,"merged":[[0,19,0,20],[0,22,0,23],[0,25,0,26],[0,1,0,2],[0,4,0,5],[0,7,0,8],[0,10,0,11],[0,13,0,14],[0,16,0,17]]}
[null,"Groupe EPSNUM",null,null,"2TU",null,null,"3PP",null,null,"1TV",null,null,"1COM",null,null,"TMELEC",null,null,"1META",null,null,"TPROE",null,null,"TEVS"]
[null,"NOMS","PRENOMS","sexe","NOMS","PRENOMS","sexe","NOMS","PRENOMS","sexe","NOMS","PRENOMS","sexe","NOMS","PRENOMS","sexe","NOMS","PRENOMS","sexe","NOMS","PRENOMS","sexe","NOMS","PRENOMS","sexe","NOMS","PRENOMS","sexe"]
[1,"CLEAUT","François ","G"]
[2,"BACHELET","Gérald","G"]
[3,"GUYARD","Ludovic","G"]
[4,"DA COSTA","Mickaël","G"]
[5,"BOUZONNET","Philippe","G",null,null,null,null,null,null,null,null,null,null,null,null,null,null,null,null,"pierre"]
[6,"DRIVOT","Pierre","G"]
[7]
[8]
[9]
[10]
[11]
[12]
[13]
[14]
[15]
[16]
[17]
[18]
[19]
[20]
[21]
[22]
[23]
[24]
[25]
[26]
[27]
[28]
[29]
[30]
[31]
[32]
[33]
[34]
[35]
[36]

{"sheet":"DEBUT","index":1,"n_rows":19,"n_cols":9,"rows_kept":19,"cut":false,"hidden":false,"merged":[]}
[]
[]
[]
[null,"COULEURS EQUIPES",null,"OBSERVABLES","CONTRAT","COMMENTAIRES SI INFERIEUR AU CONTRAT","COMMENTAIRES SI SUPERIEUR AU CONTRAT",null,"POINTS"]
[]
[null,"BLEU",null,"FAUTE",2,"Tu gères bien les fautes","Doucement ",null,-3]
[null,"VERT",null,"BALLON PERDU",2,"Bien tu lèves la tête","A qui fais tu la passe",null,-2]
[null,"ROUGE",null,"INTERCEPTION",2,"Il faut anticiper les passes","Tu es plutot actif",null,-1]
[null,"JAUNE",null,"RECUPERATION",2,"Il faut anticiper les passes","Bien harcelé",null,0]
[null,null,null,"TIR",2,"Il faut oser tirer","Bien essayé mais il faudra travailler l'adresse",null,1]
[null,null,null,"BON TIR",2,"Pourquoi tes tirs ne rentrent pas ?","On va travailler la précision",null,2]
[null,null,null,"PANIER",2,"Si tu tires il faudra être plus précis","Joli",null,3]
[null,null,null,"PASSE DE",2,"Il faut aider les partenaires à briller","Bien joué",null,4]
[null,null,null,"UNE-2",2,"Sollicites plus le ballon","Continue ainsi",null,5]
[null,null,null,null,null,null,null,null,6]
[null,null,null,null,null,null,null,null,7]
[null,null,null,null,null,null,null,null,8]
[null,null,null,null,null,null,null,null,9]
[null,null,null,null,null,null,null,null,10]

{"sheet":"EQUIPES","index":2,"n_rows":13,"n_cols":8,"rows_kept":13,"cut":false,"hidden":false,"merged":[]}
[]
[null,"Groupe EPSNUM"]
[]
[null,"EQUIPE 1",null,"EQUIPE 2",null,"EQUIPE 3",null,"EQUIPE 4"]
[null,"ROUGE",null,"BLEU",null,"VERT",null,"JAUNE"]
["Coach","François ",null,"Mickaël",null,"Gérald"]
["Arbitre 1","Ludovic",null,"Philippe",null,"Pierre"]
["Arbitre 2"]
["Observateur 1"]
["Observateur 2"]
["Secrétaire 1"]
["Secrétaire 2"]
["Table de marque"]

{"sheet":"COMPTEUR","index":3,"n_rows":49,"n_cols":8,"rows_kept":49,"cut":false,"hidden":false,"merged":[]}
[]
[null,"BLEU","SCORE",{"$f":"B5*B36+C5*C36+D5*D36+E5*E36+F5*F36+G5*G36","v":0},null,"POSSESSIONS",4]
[]
[null,"FAUTE","BALLON PERDU","RECUPERATION","TIR","BON TIR","PANIER"]
["pts",-3,-1,2,1,2,5]
[1,null,null,null,null,null,null,1]
[2,null,null,null,null,null,null,2]
[3,null,null,null,null,null,null,3]
[4,null,null,null,null,null,null,4]
[5,null,null,null,null,null,null,5]
[6,null,null,null,null,null,null,6]
[7,null,null,null,null,null,null,7]
[8,null,null,null,null,null,null,8]
[9,null,null,null,null,null,null,9]
[10,null,null,null,null,null,null,10]
[11,null,null,null,null,null,null,11]
[12,null,null,null,null,null,null,12]
[13,null,null,null,null,null,null,13]
[14,null,null,null,null,null,null,14]
[15,null,null,null,null,null,null,15]
[16,null,null,null,null,null,null,16]
[17,null,null,null,null,null,null,17]
[18,null,null,null,null,null,null,18]
[19,null,null,null,null,null,null,19]
[20,null,null,null,null,null,null,20]
[21,null,null,null,null,null,null,21]
[22,null,null,null,null,null,null,22]
[23,null,null,null,null,null,null,23]
[24,null,null,null,null,null,null,24]
[25,null,null,null,null,null,null,25]
[26,null,null,null,null,null,null,26]
[27,null,null,null,null,null,null,27]
[28,null,null,null,null,null,null,28]
[29,null,null,null,null,null,null,29]
[30,null,null,null,null,null,null,30]
[{"$f":"B2","v":"BLEU"},{"$f":"(SUMPRODUCT(N(ISTEXT(B6:B35))))","v":0},{"$f":"(SUMPRODUCT(N(ISTEXT(C6:C35))))","v":0},0,0,0,0]
[{"$f":"IF($A$36=EQUIPES!$B$5,EQUIPES!$B6,IF($A$36=EQUIPES!$D$5,EQUIPES!$D6,IF($A$36=EQUIPES!$F$5,EQUIPES!$F6,IF($A$36=EQUIPES!$H$5,EQUIPES!$H6))))","v":"Mickaël"},{"$f":"COUNTIF(B$6:B$35,$A37)","v":0},{"$f":"COUNTIF(C$6:C$35,$A37)","v":0},0,0,0,0]
[null,{"$f":"COUNTIF(B$6:B$35,$A38)","v":0},0,0,0,0,0]
[{"$f":"IF($A$36=EQUIPES!$B$5,EQUIPES!$B8,IF($A$36=EQUIPES!$D$5,EQUIPES!$D8,IF($A$36=EQUIPES!$F$5,EQUIPES!$F8,IF($A$36=EQUIPES!$H$5,EQUIPES!$H8))))","v":0},0,0,0,0,0,0]
[{"$f":"IF($A$36=EQUIPES!$B$5,EQUIPES!$B9,IF($A$36=EQUIPES!$D$5,EQUIPES!$D9,IF($A$36=EQUIPES!$F$5,EQUIPES!$F9,IF($A$36=EQUIPES!$H$5,EQUIPES!$H9))))","v":0},0,0,0,0,0,0]
[{"$f":"IF($A$36=EQUIPES!$B$5,EQUIPES!$B10,IF($A$36=EQUIPES!$D$5,EQUIPES!$D10,IF($A$36=EQUIPES!$F$5,EQUIPES!$F10,IF($A$36=EQUIPES!$H$5,EQUIPES!$H10))))","v":0},0,0,0,0,0,0]
[{"$f":"IF($A$36=EQUIPES!$B$5,EQUIPES!$B11,IF($A$36=EQUIPES!$D$5,EQUIPES!$D11,IF($A$36=EQUIPES!$F$5,EQUIPES!$F11,IF($A$36=EQUIPES!$H$5,EQUIPES!$H11))))","v":0},0,0,0,0,0,0]
[{"$f":"IF($A$36=EQUIPES!$B$5,EQUIPES!$B12,IF($A$36=EQUIPES!$D$5,EQUIPES!$D12,IF($A$36=EQUIPES!$F$5,EQUIPES!$F12,IF($A$36=EQUIPES!$H$5,EQUIPES!$H12))))","v":0},0,0,0,0,0,0]
[{"$f":"IF($A$36=EQUIPES!$B$5,EQUIPES!$B13,IF($A$36=EQUIPES!$D$5,EQUIPES!$D13,IF($A$36=EQUIPES!$F$5,EQUIPES!$F13,IF($A$36=EQUIPES!$H$5,EQUIPES!$H13))))","v":0},0,0,0,0,0,0]
[]
[]
[null,{"$f":"B4","v":"FAUTE"},{"$f":"C4","v":"BALLON PERDU"},"RECUPERATION","TIR","BON TIR","PANIER"]
[null,{"$f":"CONCATENATE(\"/\",\"POSSESSION\")","v":"/POSSESSION"},{"$f":"CONCATENATE(\"/\",\"POSSESSION\")","v":"/POSSESSION"},"/POSSESSION","/POSSESSION","/POSSESSION","/POSSESSION"]
[null,{"$f":"B36/$G$2","v":0},{"$f":"C36/$G$2","v":0},0,0,0,0]

{"sheet":"COMPTEUR (2)","index":4,"n_rows":49,"n_cols":8,"rows_kept":49,"cut":false,"hidden":false,"merged":[]}
[]
[null,"BLEU","SCORE",{"$f":"B5*B36+C5*C36+D5*D36+E5*E36+F5*F36+G5*G36","v":5},null,"POSSESSIONS",4]
[]
[null,"FAUTE","BALLON PERDU","RECUPERATION","TIR","BON TIR","PANIER"]
["pts",-3,-1,2,1,2,5]
[1,"Mickaël",null,null,null,null,null,1]
[2,null,"Philippe",null,null,null,null,2]
[3,null,null,"Philippe",null,null,null,3]
[4,null,null,null,null,null,"Mickaël",4]
[5,null,null,null,null,null,null,5]
[6,null,null,null,null,null,null,6]
[7,null,null,null,null,null,null,7]
[8,null,null,null,null,null,null,8]
[9,null,null,null,null,null,null,9]
[10,null,null,null,null,null,null,10]
[11,null,null,null,null,null,null,11]
[12,null,null,null,null,null,null,12]
[13,null,null,null,null,null,null,13]
[14,null,null,null,null,null,null,14]
[15,null,null,null,null,null,null,15]
[16,null,null,null,null,null,null,16]
[17,null,null,null,null,null,null,17]
[18,null,null,null,null,null,null,18]
[19,null,null,null,null,null,null,19]
[20,null,null,null,null,null,null,20]
[21,null,null,null,null,null,null,21]
[22,null,null,null,null,null,null,22]
[23,null,null,null,null,null,null,23]
[24,null,null,null,null,null,null,24]
[25,"Mickaël",null,null,null,null,null,25]
[26,null,null,null,null,null,"Philippe",26]
[27,null,null,null,null,null,null,27]
[28,null,null,null,null,null,null,28]
[29,null,null,null,null,null,null,29]
[30,null,null,null,null,null,null,30]
[{"$f":"B2","v":"BLEU"},{"$f":"(SUMPRODUCT(N(ISTEXT(B6:B35))))","v":2},{"$f":"(SUMPRODUCT(N(ISTEXT(C6:C35))))","v":1},1,0,0,2]
[{"$f":"IF($A$36=EQUIPES!$B$5,EQUIPES!$B6,IF($A$36=EQUIPES!$D$5,EQUIPES!$D6,IF($A$36=EQUIPES!$F$5,EQUIPES!$F6,IF($A$36=EQUIPES!$H$5,EQUIPES!$H6))))","v":"Mickaël"},{"$f":"COUNTIF(B$6:B$35,$A37)","v":2},{"$f":"COUNTIF(C$6:C$35,$A37)","v":0},0,0,0,1]
[{"$f":"IF($A$36=EQUIPES!$B$5,EQUIPES!$B7,IF($A$36=EQUIPES!$D$5,EQUIPES!$D7,IF($A$36=EQUIPES!$F$5,EQUIPES!$F7,IF($A$36=EQUIPES!$H$5,EQUIPES!$H7))))","v":"Philippe"},{"$f":"COUNTIF(B$6:B$35,$A38)","v":0},1,1,0,0,1]
[{"$f":"IF($A$36=EQUIPES!$B$5,EQUIPES!$B8,IF($A$36=EQUIPES!$D$5,EQUIPES!$D8,IF($A$36=EQUIPES!$F$5,EQUIPES!$F8,IF($A$36=EQUIPES!$H$5,EQUIPES!$H8))))","v":0},0,0,0,0,0,0]
[{"$f":"IF($A$36=EQUIPES!$B$5,EQUIPES!$B9,IF($A$36=EQUIPES!$D$5,EQUIPES!$D9,IF($A$36=EQUIPES!$F$5,EQUIPES!$F9,IF($A$36=EQUIPES!$H$5,EQUIPES!$H9))))","v":0},0,0,0,0,0,0]
[{"$f":"IF($A$36=EQUIPES!$B$5,EQUIPES!$B10,IF($A$36=EQUIPES!$D$5,EQUIPES!$D10,IF($A$36=EQUIPES!$F$5,EQUIPES!$F10,IF($A$36=EQUIPES!$H$5,EQUIPES!$H10))))","v":0},0,0,0,0,0,0]
[{"$f":"IF($A$36=EQUIPES!$B$5,EQUIPES!$B11,IF($A$36=EQUIPES!$D$5,EQUIPES!$D11,IF($A$36=EQUIPES!$F$5,EQUIPES!$F11,IF($A$36=EQUIPES!$H$5,EQUIPES!$H11))))","v":0},0,0,0,0,0,0]
[{"$f":"IF($A$36=EQUIPES!$B$5,EQUIPES!$B12,IF($A$36=EQUIPES!$D$5,EQUIPES!$D12,IF($A$36=EQUIPES!$F$5,EQUIPES!$F12,IF($A$36=EQUIPES!$H$5,EQUIPES!$H12))))","v":0},0,0,0,0,0,0]
[{"$f":"IF($A$36=EQUIPES!$B$5,EQUIPES!$B13,IF($A$36=EQUIPES!$D$5,EQUIPES!$D13,IF($A$36=EQUIPES!$F$5,EQUIPES!$F13,IF($A$36=EQUIPES!$H$5,EQUIPES!$H13))))","v":0},0,0,0,0,0,0]
[]
[]
[null,{"$f":"B4","v":"FAUTE"},{"$f":"C4","v":"BALLON PERDU"},"RECUPERATION","TIR","BON TIR","PANIER"]
[null,{"$f":"CONCATENATE(\"/\",\"POSSESSION\")","v":"/POSSESSION"},{"$f":"CONCATENATE(\"/\",\"POSSESSION\")","v":"/POSSESSION"},"/POSSESSION","/POSSESSION","/POSSESSION","/POSSESSION"]
[null,{"$f":"B36/$G$2","v":0.5},{"$f":"C36/$G$2","v":0.25},0.25,0,0,0.5]

{"sheet":"COMPTEUR (3)","index":5,"n_rows":49,"n_cols":8,"rows_kept":49,"cut":false,"hidden":false,"merged":[]}
[]
[null,"BLEU","SCORE",{"$f":"B5*B36+C5*C36+D5*D36+E5*E36+F5*F36+G5*G36","v":5},null,"POSSESSIONS",4]
[]
[null,"FAUTE","BALLON PERDU","RECUPERATION","TIR","BON TIR","PANIER"]
["pts",-3,-1,2,1,2,5]
[1,"Mickaël",null,null,null,null,null,1]
[2,null,"Philippe",null,null,null,null,2]
[3,null,null,"Philippe",null,null,null,3]
[4,null,null,null,null,null,"Mickaël",4]
[5,null,null,null,null,null,null,5]
[6,null,null,null,null,null,null,6]
[7,null,null,null,null,null,null,7]
[8,null,null,null,null,null,null,8]
[9,null,null,null,null,null,null,9]
[10,null,null,null,null,null,null,10]
[11,null,null,null,null,null,null,11]
[12,null,null,null,null,null,null,12]
[13,null,null,null,null,null,null,13]
[14,null,null,null,null,null,null,14]
[15,null,null,null,null,null,null,15]
[16,null,null,null,null,null,null,16]
[17,null,null,null,null,null,null,17]
[18,null,null,null,null,null,null,18]
[19,null,null,null,null,null,null,19]
[20,null,null,null,null,null,null,20]
[21,null,null,null,null,null,null,21]
[22,null,null,null,null,null,null,22]
[23,null,null,null,null,null,null,23]
[24,null,null,null,null,null,null,24]
[25,"Mickaël",null,null,null,null,null,25]
[26,null,null,null,null,null,"Philippe",26]
[27,null,null,null,null,null,null,27]
[28,null,null,null,null,null,null,28]
[29,null,null,null,null,null,null,29]
[30,null,null,null,null,null,null,30]
[{"$f":"B2","v":"BLEU"},{"$f":"(SUMPRODUCT(N(ISTEXT(B6:B35))))","v":2},{"$f":"(SUMPRODUCT(N(ISTEXT(C6:C35))))","v":1},1,0,0,2]
[{"$f":"IF($A$36=EQUIPES!$B$5,EQUIPES!$B6,IF($A$36=EQUIPES!$D$5,EQUIPES!$D6,IF($A$36=EQUIPES!$F$5,EQUIPES!$F6,IF($A$36=EQUIPES!$H$5,EQUIPES!$H6))))","v":"Mickaël"},{"$f":"COUNTIF(B$6:B$35,$A37)","v":2},{"$f":"COUNTIF(C$6:C$35,$A37)","v":0},0,0,0,1]
[{"$f":"IF($A$36=EQUIPES!$B$5,EQUIPES!$B7,IF($A$36=EQUIPES!$D$5,EQUIPES!$D7,IF($A$36=EQUIPES!$F$5,EQUIPES!$F7,IF($A$36=EQUIPES!$H$5,EQUIPES!$H7))))","v":"Philippe"},{"$f":"COUNTIF(B$6:B$35,$A38)","v":0},1,1,0,0,1]
[{"$f":"IF($A$36=EQUIPES!$B$5,EQUIPES!$B8,IF($A$36=EQUIPES!$D$5,EQUIPES!$D8,IF($A$36=EQUIPES!$F$5,EQUIPES!$F8,IF($A$36=EQUIPES!$H$5,EQUIPES!$H8))))","v":0},0,0,0,0,0,0]
[{"$f":"IF($A$36=EQUIPES!$B$5,EQUIPES!$B9,IF($A$36=EQUIPES!$D$5,EQUIPES!$D9,IF($A$36=EQUIPES!$F$5,EQUIPES!$F9,IF($A$36=EQUIPES!$H$5,EQUIPES!$H9))))","v":0},0,0,0,0,0,0]
[{"$f":"IF($A$36=EQUIPES!$B$5,EQUIPES!$B10,IF($A$36=EQUIPES!$D$5,EQUIPES!$D10,IF($A$36=EQUIPES!$F$5,EQUIPES!$F10,IF($A$36=EQUIPES!$H$5,EQUIPES!$H10))))","v":0},0,0,0,0,0,0]
[{"$f":"IF($A$36=EQUIPES!$B$5,EQUIPES!$B11,IF($A$36=EQUIPES!$D$5,EQUIPES!$D11,IF($A$36=EQUIPES!$F$5,EQUIPES!$F11,IF($A$36=EQUIPES!$H$5,EQUIPES!$H11))))","v":0},0,0,0,0,0,0]
[{"$f":"IF($A$36=EQUIPES!$B$5,EQUIPES!$B12,IF($A$36=EQUIPES!$D$5,EQUIPES!$D12,IF($A$36=EQUIPES!$F$5,EQUIPES!$F12,IF($A$36=EQUIPES!$H$5,EQUIPES!$H12))))","v":0},0,0,0,0,0,0]
[{"$f":"IF($A$36=EQUIPES!$B$5,EQUIPES!$B13,IF($A$36=EQUIPES!$D$5,EQUIPES!$D13,IF($A$36=EQUIPES!$F$5,EQUIPES!$F13,IF($A$36=EQUIPES!$H$5,EQUIPES!$H13))))","v":0},0,0,0,0,0,0]
[]
[]
[null,{"$f":"B4","v":"FAUTE"},{"$f":"C4","v":"BALLON PERDU"},"RECUPERATION","TIR","BON TIR","PANIER"]
[null,{"$f":"CONCATENATE(\"/\",\"POSSESSION\")","v":"/POSSESSION"},{"$f":"CONCATENATE(\"/\",\"POSSESSION\")","v":"/POSSESSION"},"/POSSESSION","/POSSESSION","/POSSESSION","/POSSESSION"]
[null,{"$f":"B36/$G$2","v":0.5},{"$f":"C36/$G$2","v":0.25},0.25,0,0,0.5]

{"sheet":"COMPTEUR (4)","index":6,"n_rows":49,"n_cols":8,"rows_kept":49,"cut":false,"hidden":false,"merged":[]}
[]
[null,"BLEU","SCORE",{"$f":"B5*B36+C5*C36+D5*D36+E5*E36+F5*F36+G5*G36","v":5},null,"POSSESSIONS",4]
[]
[null,"FAUTE","BALLON PERDU","RECUPERATION","TIR","BON TIR","PANIER"]
["pts",-3,-1,2,1,2,5]
[1,"Mickaël",null,null,null,null,null,1]
[2,null,"Philippe",null,null,null,null,2]
[3,null,null,"Philippe",null,null,null,3]
[4,null,null,null,null,null,"Mickaël",4]
[5,null,null,null,null,null,null,5]
[6,null,null,null,null,null,null,6]
[7,null,null,null,null,null,null,7]
[8,null,null,null,null,null,null,8]
[9,null,null,null,null,null,null,9]
[10,null,null,null,null,null,null,10]
[11,null,null,null,null,null,null,11]
[12,null,null,null,null,null,null,12]
[13,null,null,null,null,null,null,13]
[14,null,null,null,null,null,null,14]
[15,null,null,null,null,null,null,15]
[16,null,null,null,null,null,null,16]
[17,null,null,null,null,null,null,17]
[18,null,null,null,null,null,null,18]
[19,null,null,null,null,null,null,19]
[20,null,null,null,null,null,null,20]
[21,null,null,null,null,null,null,21]
[22,null,null,null,null,null,null,22]
[23,null,null,null,null,null,null,23]
[24,null,null,null,null,null,null,24]
[25,"Mickaël",null,null,null,null,null,25]
[26,null,null,null,null,null,"Philippe",26]
[27,null,null,null,null,null,null,27]
[28,null,null,null,null,null,null,28]
[29,null,null,null,null,null,null,29]
[30,null,null,null,null,null,null,30]
[{"$f":"B2","v":"BLEU"},{"$f":"(SUMPRODUCT(N(ISTEXT(B6:B35))))","v":2},{"$f":"(SUMPRODUCT(N(ISTEXT(C6:C35))))","v":1},1,0,0,2]
[{"$f":"IF($A$36=EQUIPES!$B$5,EQUIPES!$B6,IF($A$36=EQUIPES!$D$5,EQUIPES!$D6,IF($A$36=EQUIPES!$F$5,EQUIPES!$F6,IF($A$36=EQUIPES!$H$5,EQUIPES!$H6))))","v":"Mickaël"},{"$f":"COUNTIF(B$6:B$35,$A37)","v":2},{"$f":"COUNTIF(C$6:C$35,$A37)","v":0},0,0,0,1]
[{"$f":"IF($A$36=EQUIPES!$B$5,EQUIPES!$B7,IF($A$36=EQUIPES!$D$5,EQUIPES!$D7,IF($A$36=EQUIPES!$F$5,EQUIPES!$F7,IF($A$36=EQUIPES!$H$5,EQUIPES!$H7))))","v":"Philippe"},{"$f":"COUNTIF(B$6:B$35,$A38)","v":0},1,1,0,0,1]
[{"$f":"IF($A$36=EQUIPES!$B$5,EQUIPES!$B8,IF($A$36=EQUIPES!$D$5,EQUIPES!$D8,IF($A$36=EQUIPES!$F$5,EQUIPES!$F8,IF($A$36=EQUIPES!$H$5,EQUIPES!$H8))))","v":0},0,0,0,0,0,0]
[{"$f":"IF($A$36=EQUIPES!$B$5,EQUIPES!$B9,IF($A$36=EQUIPES!$D$5,EQUIPES!$D9,IF($A$36=EQUIPES!$F$5,EQUIPES!$F9,IF($A$36=EQUIPES!$H$5,EQUIPES!$H9))))","v":0},0,0,0,0,0,0]
[{"$f":"IF($A$36=EQUIPES!$B$5,EQUIPES!$B10,IF($A$36=EQUIPES!$D$5,EQUIPES!$D10,IF($A$36=EQUIPES!$F$5,EQUIPES!$F10,IF($A$36=EQUIPES!$H$5,EQUIPES!$H10))))","v":0},0,0,0,0,0,0]
[{"$f":"IF($A$36=EQUIPES!$B$5,EQUIPES!$B11,IF($A$36=EQUIPES!$D$5,EQUIPES!$D11,IF($A$36=EQUIPES!$F$5,EQUIPES!$F11,IF($A$36=EQUIPES!$H$5,EQUIPES!$H11))))","v":0},0,0,0,0,0,0]
[{"$f":"IF($A$36=EQUIPES!$B$5,EQUIPES!$B12,IF($A$36=EQUIPES!$D$5,EQUIPES!$D12,IF($A$36=EQUIPES!$F$5,EQUIPES!$F12,IF($A$36=EQUIPES!$H$5,EQUIPES!$H12))))","v":0},0,0,0,0,0,0]
[{"$f":"IF($A$36=EQUIPES!$B$5,EQUIPES!$B13,IF($A$36=EQUIPES!$D$5,EQUIPES!$D13,IF($A$36=EQUIPES!$F$5,EQUIPES!$F13,IF($A$36=EQUIPES!$H$5,EQUIPES!$H13))))","v":0},0,0,0,0,0,0]
[]
[]
[null,{"$f":"B4","v":"FAUTE"},{"$f":"C4","v":"BALLON PERDU"},"RECUPERATION","TIR","BON TIR","PANIER"]
[null,{"$f":"CONCATENATE(\"/\",\"POSSESSION\")","v":"/POSSESSION"},{"$f":"CONCATENATE(\"/\",\"POSSESSION\")","v":"/POSSESSION"},"/POSSESSION","/POSSESSION","/POSSESSION","/POSSESSION"]
[null,{"$f":"B36/$G$2","v":0.5},{"$f":"C36/$G$2","v":0.25},0.25,0,0,0.5]